bitfinex/quotes_BTCUSD_20230901
["timestamp","ask_amount","ask_price","bid_price","bid_amount"]
[1693544122810,0.92954899,26069.0,26068.0,1.17382185]
[1693544123026,1.09972914,26069.0,26068.0,1.17382185]
[1693544123431,1.28333135,26069.0,26068.0,1.17382185]
[1693544124365,1.28733135,26069.0,26068.0,1.19982185]
[1693544124976,1.06178236,26069.0,26068.0,1.21982185]
[1693544126950,0.89160221,26069.0,26068.0,1.21982185]
[1693544129196,1.02923502,26069.0,26068.0,1.21982185]
[1693544129635,1.02923513,26069.0,26068.0,1.21982185]
[1693544130235,1.02922779,26069.0,26068.0,1.21982185]
[1693544130643,0.89160221,26069.0,26068.0,1.21982185]
[1693544130851,1.02922213,26069.0,26068.0,1.21982185]
[1693544131620,1.02922213,26069.0,26068.0,1.79523985]
[1693544132578,0.89160221,26069.0,26068.0,1.79523985]
[1693544133879,1.02920096,26069.0,26068.0,1.79523985]
[1693544139874,0.84559875,26069.0,26068.0,1.79523985]
[1693544142306,1.02920096,26069.0,26068.0,1.79523985]
[1693544144765,0.89160221,26069.0,26068.0,1.79523985]
[1693544147417,1.02916657,26069.0,26068.0,1.79523985]
[1693544147783,0.89160221,26069.0,26068.0,1.79523985]
[1693544148453,1.02916627,26069.0,26068.0,1.79523985]
[1693544149935,0.89160221,26069.0,26068.0,1.79523985]
[1693544150368,1.02917026,26069.0,26068.0,1.79523985]
[1693544150594,1.02917021,26069.0,26068.0,1.79523985]
[1693544151011,0.89160221,26069.0,26068.0,1.79523985]
[1693544154886,1.06120307,26069.0,26068.0,1.79523985]
[1693544155770,1.06123397,26069.0,26068.0,1.91343985]
[1693544159786,1.55597652,26069.0,26068.0,1.91343985]
[1693544161779,1.37237431,26069.0,26068.0,1.91343985]
[1693544162490,1.55591271,26069.0,26068.0,1.91343985]
[1693544162820,1.37237431,26069.0,26068.0,1.91343985]
[1693544164458,1.37237431,26069.0,26068.0,1.33802185]
[1693544165903,1.14282532,26069.0,26068.0,1.33802185]
[1693544182406,0.87763176,26069.0,26068.0,1.33802185]
[1693544204137,0.86827766,26069.0,26068.0,1.33802185]
[1693544230402,0.86827766,26069.0,26068.0,1.91343985]
[1693544230750,0.86827766,26069.0,26068.0,1.33802185]
[1693544235466,0.86827766,26069.0,26068.0,1.91343985]
[1693544244276,0.86827766,26069.0,26068.0,1.33802185]
[1693544245277,0.86827766,26069.0,26068.0,1.91343985]
[1693544255426,0.86827766,26069.0,26068.0,1.33802185]
[1693544259474,0.8576841,26069.0,26068.0,1.33802185]
[1693544260031,1.12235324,26069.0,26068.0,1.33802185]
[1693544260861,1.12235324,26069.0,26068.0,0.76261985]
[1693544262015,1.12235324,26069.0,26068.0,0.76263585]
[1693544265190,1.11435324,26069.0,26068.0,0.71663585]
[1693544265611,1.12235324,26069.0,26068.0,0.18421785]
[1693544265773,1.11835324,26069.0,26068.0,0.15921785]
[1693544266021,1.11835324,26069.0,26068.0,0.16621785]
[1693544266453,1.12235324,26069.0,26068.0,0.18421785]
[1693544267941,1.12235324,26069.0,26068.0,0.06601785]
[1693544280073,1.12235324,26069.0,26068.0,0.043]
[1693544280522,1.12235324,26069.0,26068.0,0.06601785]
[1693544281411,1.12235324,26069.0,26068.0,0.06579406]
[1693544287134,1.12235324,26069.0,26068.0,0.18399406]
[1693544292375,1.08535324,26069.0,26068.0,0.18399406]
[1693544292596,1.08535324,26069.0,26068.0,0.21157306]
[1693544296797,0.8206841,26069.0,26068.0,0.21157306]
[1693544303039,0.8206841,26069.0,26068.0,0.18855521]
[1693544303216,0.8206841,26069.0,26068.0,0.21157306]
[1693544306643,0.8206841,26069.0,26068.0,0.78699106]
[1693544307329,0.8206841,26069.0,26068.0,0.21157306]
[1693544319177,0.8206841,26069.0,26068.0,0.19157306]
[1693544319391,0.8206841,26069.0,26068.0,0.21157306]
[1693544324563,0.8206841,26069.0,26068.0,0.18855521]
[1693544324788,0.8206841,26069.0,26068.0,0.21157306]
[1693544337014,0.8206841,26069.0,26068.0,0.09337306]
[1693544347467,0.8206841,26069.0,26068.0,0.66879106]
[1693544350199,0.8206841,26069.0,26068.0,0.64879106]
[1693544357979,0.8206841,26069.0,26068.0,1.22420906]
[1693544362303,0.8206841,26069.0,26068.0,1.22119121]
[1693544365071,0.8206841,26069.0,26068.0,0.22119121]
[1693544365276,1.06512131,26069.0,26068.0,0.575418]
[1693544365741,1.06512131,26069.0,26068.0,1.150836]
[1693544371952,1.06512131,26069.0,26068.0,0.575418]
[1693544397514,1.18346343,26069.0,26068.0,0.575418]
[1693544398415,1.18346343,26069.0,26067.0,1.59206785]
[1693544398585,0.3792624,26068.0,26067.0,1.59206785]
[1693544398808,1.0792624,26068.0,26067.0,1.59206785]
[1693544399533,1.0792624,26068.0,26067.0,1.59406785]
[1693544399746,1.0832624,26068.0,26067.0,1.59706785]
[1693544400088,1.0832624,26068.0,26067.0,1.59506785]
[1693544400296,1.0872624,26068.0,26067.0,1.59706785]
[1693544401580,1.32963627,26068.0,26067.0,1.59406785]
[1693544402001,1.33263627,26068.0,26067.0,1.59706785]
[1693544402132,1.32563627,26068.0,26067.0,1.59206785]
[1693544402742,1.33263627,26068.0,26067.0,1.59706785]
[1693544403085,1.32963627,26068.0,26067.0,1.59506785]
[1693544403302,1.33363627,26068.0,26067.0,1.59706785]
[1693544404886,1.33363627,26068.0,26067.0,0.998622]
[1693544405294,1.33363627,26068.0,26067.0,1.02163985]
[1693544408082,1.33363627,26068.0,26067.0,0.44621785]
[1693544412971,1.33363627,26068.0,26067.0,1.02165785]
[1693544413190,1.33363627,26068.0,26067.0,0.99864]
[1693544413499,1.33363627,26068.0,26067.0,1.02165785]
[1693544415664,1.32963627,26068.0,26067.0,1.01965785]
[1693544415930,1.32563627,26068.0,26067.0,1.01665785]
[1693544416073,1.32863627,26068.0,26067.0,1.01965785]
[1693544416280,1.33163627,26068.0,26067.0,1.02165785]
[1693544417224,1.33163627,26068.0,26067.0,0.90345785]
[1693544417988,1.32863627,26068.0,26067.0,0.90145785]
[1693544418249,1.33163627,26068.0,26067.0,0.90345785]
[1693544424567,1.33163627,26068.0,26067.0,0.88044]
[1693544424689,1.33163627,26068.0,26067.0,0.90345785]
[1693544426355,1.32261628,26068.0,26067.0,0.90345785]
[1693544428361,1.07624241,26068.0,26067.0,0.90345785]
[1693544433480,1.07624241,26068.0,26067.0,0.88044]
[1693544434969,1.07624241,26068.0,26067.0,0.305]
[1693544436922,1.07624241,26068.0,26067.0,0.005]
[1693544436923,0.84667752,26068.0,26067.0,0.005]
[1693544438170,0.84367752,26068.0,26067.0,0.003]
[1693544438372,0.84467752,26068.0,26067.0,0.004]
[1693544438789,0.84167752,26068.0,26067.0,0.001]
[1693544438993,0.84067752,26068.0,26066.0,1.269099]
[1693544439201,1.25385323,26067.0,26066.0,1.269099]
[1693544439370,1.25385323,26067.0,26066.0,0.693649]
[1693544440439,1.25685323,26067.0,26066.0,0.696649]
[1693544441590,1.25985323,26067.0,26066.0,0.698649]
[1693544450630,1.25985323,26067.0,26066.0,1.274111]
[1693544450988,1.2595151,26067.0,26066.0,1.274111]
[1693544461609,1.07587923,26067.0,26066.0,1.274111]
[1693544462632,1.2595177,26067.0,26066.0,1.274111]
[1693544468490,0.88963847,26067.0,26066.0,1.849573]
[1693544469755,1.02736739,26067.0,26066.0,1.849573]
[1693544482923,0.88963847,26067.0,26066.0,1.849573]
[1693544486029,1.02734826,26067.0,26066.0,1.849573]
[1693544508568,1.02734826,26067.0,26066.0,4.36420005]
[1693544508569,0.006,26067.0,26066.0,4.36420005]
[1693544508817,0.006,26067.0,26066.0,4.68420005]
[1693544509080,0.006,26067.0,26066.0,4.80420005]
[1693544509367,0.003,26067.0,26066.0,4.79920005]
[1693544509616,0.22953967,26071.0,26070.0,2.34450985]
[1693544509876,0.22953967,26071.0,26070.0,2.76270985]
[1693544510125,0.09182988,26071.0,26070.0,2.76270985]
[1693544510383,0.09182988,26071.0,26070.0,2.76170985]
[1693544512590,0.09782988,26071.0,26070.0,2.79570985]
[1693544512845,0.006,26071.0,26070.0,2.79570985]
[1693544523891,0.006,26071.0,26070.0,2.82699242]
[1693544527190,0.006,26071.0,26070.0,3.2140792]
[1693544537493,0.006,26071.0,26070.0,4.32011473]
[1693544537701,0.006,26071.0,26070.0,4.34011473]
[1693544540099,0.003,26071.0,26070.0,4.32411473]
[1693544540300,0.1585,26075.0,26073.0,0.02201785]
[1693544540506,0.1537,26076.0,26074.0,2.41934]
[1693544540713,0.7,26075.0,26074.0,2.30114]
[1693544540912,0.7,26075.0,26074.0,2.71934]
[1693544542811,0.7,26075.0,26074.0,2.72134]
[1693544542987,0.707,26075.0,26074.0,2.72034]
[1693544543221,0.714,26075.0,26074.0,2.72134]
[1693544544520,0.014,26075.0,26074.0,2.72134]
[1693544548088,0.007,26075.0,26074.0,2.72034]
[1693544549077,0.1537,26076.0,26074.0,2.71934]
[1693544549275,0.1537,26076.0,26075.0,0.1182]
[1693544549559,0.1537,26076.0,26075.0,1.843989]
[1693544549560,0.8537,26076.0,26075.0,1.843989]
[1693544550268,0.8617,26076.0,26075.0,1.844989]
[1693544550487,0.8687,26076.0,26075.0,1.844989]
[1693544550695,0.8607,26076.0,26075.0,1.844989]
[1693544551138,0.8687,26076.0,26075.0,1.845989]
[1693544551675,0.96052988,26076.0,26075.0,1.845989]
[1693544558248,0.8687,26076.0,26075.0,1.845989]
[1693544558647,0.96052988,26076.0,26075.0,1.845989]
[1693544560172,0.8687,26076.0,26075.0,1.845989]
[1693544560575,0.96052988,26076.0,26075.0,1.845989]
[1693544561297,0.8687,26076.0,26075.0,1.845989]
[1693544561501,0.96052988,26076.0,26075.0,1.845989]
[1693544562894,0.715,26076.0,26075.0,2.27509363]
[1693544563097,0.715,26076.0,26075.0,2.59509363]
[1693544563721,0.707,26076.0,26075.0,2.59409363]
[1693544564213,0.09182988,26078.0,26077.0,2.300876]
[1693544564412,0.7,26078.0,26077.0,2.80616278]
[1693544564791,0.79182988,26078.0,26077.0,2.80616278]
[1693544565159,0.7,26078.0,26077.0,2.80616278]
[1693544565415,0.79182988,26078.0,26077.0,2.80616278]
[1693544565626,0.09182988,26078.0,26077.0,2.80616278]
[1693544565981,0.09582988,26078.0,26077.0,2.84216278]
[1693544566565,0.007,26078.0,26077.0,2.87916278]
[1693544566796,0.09882988,26078.0,26077.0,2.87916278]
[1693544567178,0.007,26078.0,26077.0,2.87916278]
[1693544567453,0.09882988,26078.0,26077.0,2.87916278]
[1693544568626,0.007,26078.0,26077.0,2.87916278]
[1693544572921,0.007,26078.0,26077.0,3.20118063]
[1693544574282,0.007,26078.0,26077.0,3.62398063]
[1693544574482,0.007,26078.0,26077.0,3.64398063]
[1693544574940,0.007,26078.0,26077.0,3.79747363]
[1693544577976,0.007,26078.0,26077.0,3.82854203]
[1693544584167,0.007,26078.0,26077.0,3.84520734]
[1693544587935,0.25042988,26081.0,26080.0,0.14021785]
[1693544588143,0.25042988,26081.0,26080.0,3.24611663]
[1693544588346,0.25042988,26081.0,26080.0,3.12791663]
[1693544588847,0.95042988,26081.0,26080.0,3.12791663]
[1693544589892,0.95242988,26081.0,26080.0,3.15191663]
[1693544590902,0.95442988,26081.0,26080.0,3.17591663]
[1693544592528,0.95442988,26081.0,26080.0,3.19226822]
[1693544596459,1.00030979,26081.0,26080.0,3.19226822]
[1693544596693,1.09206608,26081.0,26080.0,3.19226822]
[1693544597137,1.00030979,26081.0,26080.0,3.19226822]
[1693544599514,1.18394826,26081.0,26080.0,3.19226822]
[1693544602392,1.04623847,26081.0,26080.0,3.19226822]
[1693544603272,1.12022971,26081.0,26080.0,3.19226822]
[1693544605261,1.34977455,26081.0,26080.0,3.19226822]
[1693544607869,1.16613608,26081.0,26080.0,2.61711522]
[1693544613242,1.16641712,26081.0,26080.0,2.61711522]
[1693544614044,1.16641712,26081.0,26080.0,2.60076363]
[1693544616138,0.9367193,26081.0,26080.0,2.60076363]
[1693544617533,1.06192038,26081.0,26080.0,0.048]
[1693544618345,1.05992038,26081.0,26080.0,0.024]
[1693544619189,1.05792038,26081.0,26079.0,0.3]
[1693544619375,0.8856,26081.0,26080.0,0.002]
[1693544619628,1.08473302,26081.0,26080.0,0.002]
[1693544620247,2.23599502,26081.0,26080.0,0.002]
[1693544620436,2.26299502,26081.0,26080.0,0.002]
[1693544620637,1.63286402,26081.0,26077.0,0.59723185]
[1693544620869,0.32164569,26078.0,26077.0,1.17244085]
[1693544621077,1.02164569,26078.0,26077.0,1.47244085]
[1693544621696,1.02164569,26078.0,26077.0,1.47444085]
[1693544622627,1.02264569,26078.0,26077.0,1.48544085]
[1693544623641,1.02264569,26078.0,26077.0,1.48344085]
[1693544623844,1.02364569,26078.0,26077.0,1.49444085]
[1693544625460,0.95993019,26078.0,26077.0,0.322]
[1693544625767,1.18967712,26078.0,26077.0,0.022]
[1693544626943,0.95993019,26078.0,26077.0,0.597219]
[1693544629855,0.96053709,26078.0,26077.0,0.597219]
[1693544630849,0.96053709,26078.0,26077.0,0.022]
[1693544631791,0.88579754,26078.0,26077.0,0.022]
[1693544632506,0.96086423,26078.0,26077.0,0.022]
[1693544632760,0.88579754,26078.0,26077.0,0.022]
[1693544632986,0.96086032,26078.0,26077.0,0.022]
[1693544639801,1.19060725,26078.0,26077.0,0.022]
[1693544642377,1.49958759,26078.0,26077.0,0.022]
[1693544642587,3.15136479,26078.0,26077.0,0.022]
[1693544642796,3.48700218,26078.0,26077.0,0.022]
[1693544643215,3.55276218,26078.0,26077.0,0.022]
[1693544643416,3.55100218,26078.0,26071.0,1.15067]
[1693544643617,0.09179904,26073.0,26071.0,1.17268785]
[1693544643823,0.7,26072.0,26071.0,1.22187745]
[1693544644024,0.7,26072.0,26071.0,1.15067]
[1693544644251,0.7,26072.0,26071.0,1.45067]
[1693544645274,0.7,26072.0,26071.0,1.47268785]
[1693544645476,0.7,26072.0,26071.0,1.45067]
[1693544645589,0.7,26072.0,26071.0,0.875332]
[1693544645796,0.7,26072.0,26070.0,0.575369]
[1693544646034,0.71798215,26072.0,26069.0,0.03073735]
[1693544646240,0.71798215,26072.0,26071.0,0.037]
[1693544646241,0.81278119,26072.0,26071.0,0.037]
[1693544646631,0.72098215,26072.0,26071.0,0.037]
[1693544647036,0.72098215,26072.0,26070.0,0.037]
[1693544647235,0.71998215,26072.0,26069.0,0.018]
[1693544647613,0.87738215,26072.0,26071.0,0.018]
[1693544648763,0.87538215,26072.0,26069.0,0.018]
[1693544648969,0.87538215,26072.0,26068.0,1.15383385]
[1693544649171,1.17628273,26072.0,26070.0,0.018]
[1693544649372,1.17628273,26072.0,26071.0,0.018]
[1693544650220,1.17828273,26072.0,26071.0,0.018]
[1693544650443,1.17628273,26072.0,26069.0,0.575392]
[1693544650649,1.17428273,26072.0,26069.0,0.575392]
[1693544650831,1.17628273,26072.0,26070.0,0.018]
[1693544651135,1.17828273,26072.0,26071.0,0.018]
[1693544652123,1.17628273,26072.0,26070.0,0.018]
[1693544652318,0.09541746,26071.0,26069.0,1.168784]
[1693544652606,0.7,26070.0,26069.0,1.168784]
[1693544652790,0.7,26070.0,26069.0,0.593392]
[1693544652986,0.7,26070.0,26069.0,0.575392]
[1693544653757,0.7,26070.0,26069.0,1.150788]
[1693544654094,0.706,26070.0,26069.0,1.224788]
[1693544655117,0.703,26070.0,26069.0,1.187788]
[1693544655503,0.703,26070.0,26069.0,1.181788]
[1693544655828,0.706,26070.0,26069.0,1.212788]
[1693544670020,0.706,26070.0,26069.0,1.788184]
[1693544688431,0.79779904,26070.0,26069.0,1.788184]
[1693544691422,0.9354976,26070.0,26069.0,1.788184]
[1693544698296,1.02729664,26070.0,26069.0,1.788184]
[1693544700044,0.84369856,26070.0,26069.0,1.788184]
[1693544700246,1.02729664,26070.0,26069.0,1.788184]
[1693544700803,0.84369856,26070.0,26069.0,1.788184]
[1693544707131,0.84369856,26070.0,26069.0,1.906384]
[1693544715573,1.02729664,26070.0,26069.0,1.906384]
[1693544716493,0.88959808,26070.0,26069.0,1.906384]
[1693544716669,1.02754316,26070.0,26069.0,1.906384]
[1693544718311,0.88959808,26070.0,26069.0,1.906384]
[1693544719867,1.02754783,26070.0,26069.0,1.906384]
[1693544730349,1.02786014,26070.0,26069.0,1.906384]
[1693544733548,0.84394006,26070.0,26069.0,1.906384]
[1693544734685,1.02786014,26070.0,26069.0,1.906384]
[1693544735691,0.84394006,26070.0,26069.0,1.906384]
[1693544737137,1.02786014,26070.0,26069.0,1.906384]
[1693544737340,1.02787277,26070.0,26069.0,1.906384]
[1693544744919,0.8899273,26070.0,26069.0,1.906384]
[1693544745152,0.8899273,26070.0,26069.0,1.330988]
[1693544747325,1.02790178,26070.0,26069.0,1.330988]
[1693544751583,0.8899273,26070.0,26069.0,1.330988]
[1693544752371,0.96231727,26070.0,26069.0,1.330988]
[1693544757900,0.96231727,26070.0,26069.0,1.212788]
[1693544760740,1.1922264,26070.0,26069.0,1.212788]
[1693544762078,0.96231727,26070.0,26069.0,1.212788]
[1693544764207,1.1922264,26070.0,26069.0,1.212788]
[1693544765360,1.18204637,26070.0,26069.0,1.212788]
[1693544766769,1.37204637,26070.0,26069.0,1.212788]
[1693544767932,1.37241576,26070.0,26069.0,1.212788]
[1693544781044,1.14243785,26070.0,26069.0,1.212788]
[1693544783788,1.37241576,26070.0,26069.0,1.212788]
[1693544797891,1.18843343,26070.0,26069.0,1.212788]
[1693544802741,1.37243938,26070.0,26069.0,1.212788]
[1693544813441,1.18843343,26070.0,26069.0,1.212788]
[1693544813658,0.88581997,26070.0,26069.0,1.212788]
[1693544813843,1.18706289,26070.0,26069.0,1.212788]
[1693544816087,1.17706289,26070.0,26069.0,1.212788]
[1693544823070,1.10583998,26070.0,26069.0,2.44830549]
[1693544823282,0.96782797,26070.0,26069.0,3.41959426]
[1693544823702,0.196,26070.0,26069.0,3.41959426]
[1693544823914,0.196,26070.0,26069.0,3.46161211]
[1693544824123,0.196,26070.0,26069.0,3.76161211]
[1693544824541,0.196,26070.0,26069.0,3.91515211]
[1693544836746,0.196,26070.0,26069.0,4.31795211]
[1693544838168,0.19,26070.0,26069.0,4.25595211]
[1693544838572,0.193,26070.0,26069.0,4.29295211]
[1693544838971,0.196,26070.0,26069.0,4.32995211]
[1693544839439,0.193,26070.0,26069.0,4.29295211]
[1693544839803,0.196,26070.0,26069.0,4.32995211]
[1693544849123,0.006,26070.0,26069.0,4.32995211]
[1693544863103,0.006,26070.0,26069.0,4.32988332]
[1693544875530,0.006,26070.0,26069.0,4.32989799]
[1693544875755,0.706,26070.0,26069.0,4.32989799]
[1693544879877,0.896,26070.0,26069.0,4.32989799]
[1693544880459,0.896,26070.0,26069.0,2.60371399]
[1693544880670,0.896,26070.0,26069.0,4.32989199]
[1693544881088,0.196,26070.0,26069.0,4.32989199]
[1693544882814,0.896,26070.0,26069.0,4.32989199]
[1693544885291,0.896,26070.0,26069.0,3.92709199]
[1693544885541,0.98785002,26070.0,26069.0,2.29573585]
[1693544885751,0.98785002,26070.0,26069.0,1.72033985]
[1693544886173,0.98785002,26070.0,26069.0,1.56679985]
[1693544886375,0.98485002,26070.0,26069.0,1.52979985]
[1693544886609,0.98185002,26070.0,26069.0,1.49279985]
[1693544886816,0.98585002,26070.0,26069.0,1.54079985]
[1693544887015,0.98585002,26070.0,26069.0,1.51679985]
[1693544887172,0.98185002,26070.0,26069.0,1.49279985]
[1693544887352,0.98285002,26070.0,26069.0,1.50379985]
[1693544888573,0.98385002,26070.0,26069.0,1.51479985]
[1693544890000,0.98385002,26070.0,26069.0,2.09019585]
[1693544892536,0.892,26070.0,26069.0,2.09019585]
[1693544907867,0.88243535,26070.0,26069.0,2.09019585]
[1693544911939,0.702,26070.0,26069.0,2.09019585]
[1693544916949,0.702,26070.0,26069.0,2.20839585]
[1693544921497,0.882,26070.0,26069.0,2.20839585]
[1693544925816,0.97385002,26070.0,26069.0,2.20839585]
[1693544930648,0.97385002,26070.0,26069.0,3.31454362]
[1693544930649,0.882,26070.0,26069.0,3.31454362]
[1693544938426,0.882,26070.0,26069.0,2.20839585]
[1693544938798,0.97385002,26070.0,26069.0,2.20839585]
[1693544939204,0.97385002,26070.0,26069.0,2.21980957]
[1693544939675,0.97385002,26070.0,26069.0,2.20839585]
[1693544954652,0.97385002,26070.0,26069.0,2.22003549]
[1693544981603,0.97385002,26070.0,26069.0,2.20839585]
[1693544983751,1.01977504,26070.0,26069.0,2.20839585]
[1693544988689,1.01977504,26070.0,26069.0,2.166378]
[1693544989190,1.11176269,26070.0,26069.0,2.166378]
[1693544990543,1.01977504,26070.0,26069.0,2.166378]
[1693544991187,1.11173787,26070.0,26069.0,2.166378]
[1693544991489,1.01977504,26070.0,26069.0,2.166378]
[1693544992371,1.01994523,26070.0,26069.0,2.166378]
[1693544993298,1.11190554,26070.0,26069.0,2.166378]
[1693544994868,1.01994523,26070.0,26069.0,2.166378]
[1693544995351,1.11190176,26070.0,26069.0,1.866378]
[1693544995555,1.11190176,26070.0,26069.0,0.022]
[1693544995556,1.12955524,26070.0,26069.0,0.022]
[1693544996382,0.96991715,26070.0,26069.0,0.022]
[1693544997163,0.96891715,26070.0,26069.0,0.011]
[1693544997362,0.98291715,26070.0,26069.0,0.012]
[1693544997594,0.98191715,26070.0,26069.0,0.001]
[1693544998002,1.10891715,26070.0,26069.0,0.003]
[1693544998357,1.09491715,26070.0,26069.0,0.002]
[1693544998566,1.12191715,26070.0,26069.0,0.004]
[1693544999182,1.35157402,26070.0,26069.0,0.004]
[1693544999392,1.12191715,26070.0,26069.0,0.004]
[1693545001957,1.69729015,26070.0,26069.0,0.004]
[1693545003394,1.92687765,26070.0,26069.0,0.004]
[1693545004143,1.92687765,26070.0,26069.0,0.01996995]
[1693545004525,1.92687765,26070.0,26069.0,0.004]
[1693545005112,1.92187765,26070.0,26069.0,0.004]
[1693545005900,1.92187765,26070.0,26069.0,0.0202755]
[1693545008917,2.10547117,26070.0,26069.0,0.0202755]
[1693545009655,3.00253743,26070.0,26069.0,0.0202755]
[1693545010205,3.00253743,26070.0,26069.0,0.004]
[1693545010591,3.18611194,26070.0,26069.0,0.004]
[1693545011308,3.18611194,26070.0,26069.0,0.02026218]
[1693545011437,3.57338611,26070.0,26069.0,0.02026218]
[1693545016280,4.14875911,26070.0,26069.0,0.02026218]
[1693545016890,4.0419846,26070.0,26069.0,0.02026218]
[1693545017090,4.0359246,26070.0,26069.0,0.02026218]
[1693545017297,3.64463043,26070.0,26069.0,0.02026218]
[1693545017504,3.57791043,26070.0,26069.0,0.004]
[1693545017903,3.57791043,26070.0,26069.0,0.02027676]
[1693545018202,3.57791043,26070.0,26069.0,0.004]
[1693545018565,3.57791043,26070.0,26069.0,0.02027676]
[1693545019189,3.57791043,26070.0,26069.0,0.004]
[1693545019392,3.9651846,26070.0,26069.0,0.004]
[1693545020196,3.57791043,26070.0,26069.0,0.02027676]
[1693545028378,3.70369902,26070.0,26069.0,0.02027676]
[1693545033818,3.70369902,26070.0,26069.0,0.004]
[1693545034175,3.47411152,26070.0,26069.0,0.004]
[1693545036946,1.47231052,26070.0,26069.0,0.004]
[1693545037598,1.47144013,26070.0,26069.0,0.004]
[1693545039322,1.24183535,26070.0,26069.0,0.004]
[1693545039502,1.11604676,26070.0,26069.0,0.004]
[1693545045601,1.24179097,26070.0,26069.0,0.004]
[1693545046234,1.11604676,26070.0,26069.0,0.004]
[1693545058674,1.34587029,26070.0,26069.0,0.004]
[1693545069614,1.11604676,26070.0,26069.0,0.004]
[1693545071315,1.24183573,26070.0,26069.0,0.004]
[1693545071691,1.81720873,26070.0,26069.0,0.004]
[1693545073502,2.39258173,26070.0,26069.0,0.004]
[1693545088549,2.37258173,26070.0,26069.0,0.004]
[1693545094882,2.94795473,26070.0,26069.0,0.004]
[1693545096314,3.22384519,26070.0,26069.0,0.004]
[1693545096518,3.72931936,26070.0,26069.0,0.004]
[1693545097084,3.79513936,26070.0,26069.0,0.004]
[1693545097268,3.79495936,26070.0,26069.0,0.004]
[1693545097669,3.79489936,26070.0,26069.0,0.004]
[1693545098124,3.79957936,26070.0,26069.0,0.004]
[1693545098348,3.79519936,26070.0,26069.0,0.004]
[1693545098553,3.79507936,26070.0,26069.0,0.004]
[1693545098765,3.79753936,26070.0,26069.0,0.004]
[1693545098955,3.79897936,26070.0,26069.0,0.004]
[1693545099155,3.79513936,26070.0,26069.0,0.004]
[1693545099359,3.72931936,26070.0,26069.0,0.004]
[1693545099874,4.07561834,26070.0,26069.0,0.004]
[1693545100070,4.18939834,26070.0,26069.0,0.004]
[1693545100281,4.18411834,26070.0,26069.0,0.004]
[1693545100532,4.18471834,26070.0,26069.0,0.004]
[1693545100716,4.18285834,26070.0,26069.0,0.004]
[1693545100915,4.18285834,26070.0,26069.0,0.002]
[1693545100916,4.15561834,26070.0,26069.0,0.002]
[1693545101122,4.15543834,26070.0,26069.0,0.002]
[1693545101324,4.34657834,26070.0,26069.0,0.005]
[1693545101529,4.31963834,26070.0,26069.0,0.003]
[1693545101733,4.35651834,26070.0,26069.0,0.006]
[1693545101932,4.35633834,26070.0,26069.0,0.006]
[1693545102068,4.35645834,26070.0,26069.0,0.006]
[1693545102461,4.35825834,26070.0,26069.0,0.006]
[1693545102636,4.35675834,26070.0,26069.0,0.006]
[1693545102789,4.35225834,26070.0,26069.0,0.006]
[1693545102991,4.35429834,26070.0,26069.0,0.006]
[1693545103202,4.35111834,26070.0,26069.0,0.006]
[1693545103434,4.35345834,26070.0,26069.0,0.006]
[1693545103597,4.35309834,26070.0,26069.0,0.006]
[1693545103984,4.34919834,26070.0,26069.0,0.006]
[1693545104200,4.34925834,26070.0,26069.0,0.006]
[1693545104615,4.35033834,26070.0,26069.0,0.006]
[1693545104798,4.34817834,26070.0,26069.0,0.006]
[1693545104926,4.34865834,26070.0,26069.0,0.006]
[1693545105152,4.34859834,26070.0,26069.0,0.006]
[1693545105364,4.34883834,26070.0,26069.0,0.006]
[1693545105563,4.34745834,26070.0,26069.0,0.006]
[1693545105769,4.34595834,26070.0,26069.0,0.006]
[1693545105970,4.34577834,26070.0,26069.0,0.006]
[1693545106340,4.34559834,26070.0,26069.0,0.006]
[1693545106577,4.34565834,26070.0,26069.0,0.006]
[1693545106779,4.34769834,26070.0,26069.0,0.006]
[1693545106988,4.34763834,26070.0,26069.0,0.006]
[1693545107196,4.34751834,26070.0,26069.0,0.006]
[1693545107398,4.34511834,26070.0,26069.0,0.006]
[1693545107577,4.34493834,26070.0,26069.0,0.006]
[1693545107817,4.34481834,26070.0,26069.0,0.006]
[1693545108000,4.34391834,26070.0,26069.0,0.006]
[1693545108223,4.34385834,26070.0,26069.0,0.006]
[1693545108422,4.34379834,26070.0,26069.0,0.006]
[1693545108623,4.61924956,26070.0,26069.0,0.006]
[1693545108905,4.61912956,26070.0,26069.0,0.006]
[1693545109104,4.61900956,26070.0,26069.0,0.006]
[1693545109315,4.61948956,26070.0,26069.0,0.006]
[1693545109512,4.61912956,26070.0,26069.0,0.006]
[1693545109724,4.61900956,26070.0,26069.0,0.006]
[1693545109929,4.61882956,26070.0,26069.0,0.006]
[1693545110082,4.61870956,26070.0,26069.0,0.006]
[1693545110493,4.61864956,26070.0,26069.0,0.006]
[1693545110693,4.61756956,26070.0,26069.0,0.006]
[1693545110893,4.4479869,26070.0,26069.0,0.006]
[1693545111140,4.47838835,26070.0,26069.0,0.006]
[1693545111341,4.47832835,26070.0,26069.0,0.006]
[1693545111564,4.47808835,26070.0,26069.0,0.006]
[1693545111864,4.47964835,26070.0,26069.0,0.006]
[1693545112064,4.48210835,26070.0,26069.0,0.006]
[1693545112298,4.48204835,26070.0,26069.0,0.006]
[1693545112468,4.48186835,26070.0,26069.0,0.006]
[1693545112740,4.47868835,26070.0,26069.0,0.006]
[1693545112942,4.47700835,26070.0,26069.0,0.006]
[1693545113173,4.47688835,26070.0,26069.0,0.006]
[1693545113376,4.47682835,26070.0,26069.0,0.006]
[1693545113555,4.47472835,26070.0,26069.0,0.006]
[1693545113688,4.47466835,26070.0,26069.0,0.006]
[1693545114107,4.47460835,26070.0,26069.0,0.006]
[1693545114509,4.64504086,26070.0,26069.0,0.006]
[1693545115135,4.64498086,26070.0,26069.0,0.006]
[1693545115814,4.64438086,26070.0,26069.0,0.006]
[1693545116067,4.64432086,26070.0,26069.0,0.006]
[1693545116274,4.64444086,26070.0,26069.0,0.006]
[1693545116445,4.64438086,26070.0,26069.0,0.006]
[1693545116647,4.64432086,26070.0,26069.0,0.006]
[1693545116855,4.64426086,26070.0,26069.0,0.006]
[1693545117453,4.64420086,26070.0,26069.0,0.006]